bitfinex-derivatives/quotes_SOLF0:USTF0_20241230
["timestamp","ask_amount","ask_price","bid_price","bid_amount"]
[1735573434103,14.78274452,187.62,187.54,2.6715]
[1735573434600,14.78274452,187.62,187.52,1.533]
[1735573434802,14.78274452,187.59,187.52,1.533]
[1735573435107,14.78274452,187.62,187.54,2.6714]
[1735573435297,14.78274452,187.62,187.5,1.6057]
[1735573435497,18.78274452,187.62,187.51,4.13321359]
[1735573435800,18.78274452,187.62,187.54,2.6714]
[1735573435996,14.78274452,187.62,187.54,2.6714]
[1735573437103,14.78274452,187.62,187.55,2.6714]
[1735573437501,4.0,187.63,187.58,2.6709]
[1735573437696,4.0,187.63,187.53,14.78274452]
[1735573438495,14.78274452,187.66,187.54,4.1331949]
[1735573438699,18.78274452,187.66,187.53,14.78274452]
[1735573438900,18.78274452,187.66,187.57,2.671]
[1735573439105,18.78274452,187.66,187.53,14.78274452]
[1735573439300,14.78274452,187.63,187.53,14.78274452]
[1735573439507,14.78274452,187.63,187.56,2.6712]
[1735573439706,18.78274452,187.66,187.53,14.78274452]
[1735573440607,4.0,187.66,187.53,14.78274452]
[1735573440807,14.78274452,187.64,187.53,14.78274452]
[1735573441202,14.78274452,187.64,187.56,2.6712]
[1735573441405,14.78274452,187.61,187.5,16.38844452]
[1735573441906,14.78274452,187.61,187.54,2.6714]
[1735573442410,14.78274452,187.65,187.56,2.6711]
[1735573442610,14.78274452,187.68,187.56,14.78274452]
[1735573442811,18.78274452,187.68,187.56,14.78274452]
[1735573443010,57.98130882,187.75,187.61,2.6705]
[1735573443212,14.78274452,187.7,187.59,14.78274452]
[1735573443607,4.0,187.74,187.59,14.78274452]
[1735573443608,14.78274452,187.73,187.6,4.13634291]
[1735573444011,14.78274452,187.73,187.61,14.78274452]
[1735573444411,14.78274452,187.76,187.64,14.78274452]
[1735573444609,4.0,187.78,187.65,1.4828]
[1735573446115,4.0,187.78,187.67,2.6697]
[1735573446813,4.0,187.78,187.66,2.6698]
[1735573448613,4.0,187.78,187.67,2.6696]
[1735573449322,4.0,187.78,187.68,2.6695]
[1735573449519,4.0,187.78,187.66,1.518]
[1735573449717,23.60131534,187.76,187.66,1.518]
[1735573450111,23.60131534,187.76,187.66,4.1878]
[1735573450812,23.60131534,187.76,187.62,1.5036]
[1735573451017,23.60131534,187.73,187.62,1.5036]
[1735573451209,4.0,187.72,187.62,1.5036]
[1735573451611,4.0,187.78,187.62,1.5036]
[1735573451811,27.60131534,187.79,187.63,27.71150508]
[1735573452116,27.60131534,187.79,187.64,4.0]
[1735573452316,27.60131534,187.79,187.69,2.6693]
[1735573452818,4.0,187.78,187.71,2.669]
[1735573453320,23.60131534,187.85,187.66,27.71117915]
[1735573453624,4.0,187.84,187.76,2.6683]
[1735573453913,23.60131534,187.85,187.78,2.668]
[1735573454119,3.94,187.86,187.72,23.60131534]
[1735573454324,23.60131534,187.88,187.73,4.6084]
[1735573454516,3.94,187.88,187.73,4.6084]
[1735573455222,55.52,187.91,187.73,4.6084]
[1735573455425,23.60131534,187.89,187.73,4.6084]
[1735573455723,55.52,187.91,187.75,23.60131534]
[1735573455935,59.46,187.91,187.76,3.94]
[1735573456115,3.94,187.91,187.76,3.94]
[1735573456423,3.94,187.91,187.83,2.6674]
[1735573457416,23.60131534,187.92,187.76,3.94]
[1735573457621,23.60131534,187.95,187.78,23.60131534]
[1735573457924,23.60131534,187.92,187.76,3.94]
[1735573458824,27.54131534,187.92,187.77,4.08837216]
[1735573459021,27.54131534,187.92,187.77,4.08843278]
[1735573459227,27.54131534,187.92,187.82,2.6674]
[1735573459422,27.54131534,187.92,187.77,4.08820082]
[1735573459721,27.54131534,187.92,187.76,3.94]
[1735573460526,27.54131534,187.92,187.81,2.6676]
[1735573460725,27.54131534,187.92,187.75,23.60131534]
[1735573460922,27.54131534,187.92,187.76,3.94]
[1735573461321,27.54131534,187.92,187.81,2.6677]
[1735573461522,27.54131534,187.92,187.76,3.94]
[1735573461719,3.94,187.94,187.76,3.94]
[1735573461918,27.54131534,187.94,187.76,3.94]
[1735573462427,27.54131534,187.94,187.82,2.6675]
[1735573463039,27.54131534,187.94,187.83,2.6674]
[1735573464526,23.60131534,187.91,187.8,2.6677]
[1735573464925,23.60131534,187.91,187.76,3.94]
[1735573465127,23.60131534,187.91,187.81,2.6676]
[1735573465434,23.60131534,187.88,187.73,4.6084]
[1735573465626,3.94,187.87,187.73,4.6084]
[1735573466131,23.60131534,187.85,187.75,2.6685]
[1735573466330,14.74186068,187.83,187.75,2.6685]
[1735573466526,14.74186068,187.83,187.73,3.1254]
[1735573466726,14.74186068,187.8,187.71,7.38434871]
[1735573467030,18.68186068,187.8,187.69,50.25668381]
[1735573467327,18.68186068,187.8,187.73,2.6687]
[1735573467526,18.68186068,187.8,187.69,51.87708381]
[1735573468031,3.94,187.84,187.71,14.74186068]
[1735573469030,3.94,187.84,187.74,2.6686]
[1735573469232,3.94,187.84,187.69,51.87708381]
[1735573469233,14.74186068,187.82,187.69,51.87708381]
[1735573469826,3.94,187.84,187.69,51.87708381]
[1735573470122,14.74186068,187.81,187.69,51.87708381]
[1735573470428,14.74186068,187.81,187.73,2.6687]
[1735573470733,14.74186068,187.81,187.69,51.87708381]
[1735573470922,14.74186068,187.81,187.72,2.6689]
[1735573471926,14.74186068,187.81,187.69,51.87708381]
[1735573473529,14.74186068,187.81,187.75,2.6685]
[1735573474131,14.74186068,187.84,187.8,2.6678]
[1735573474328,14.74186068,187.84,187.75,1.4882]
[1735573474936,14.74186068,187.84,187.79,2.6679]
[1735573475332,14.74186068,187.84,187.75,1.4882]
[1735573475530,14.74186068,187.84,187.78,2.6681]
[1735573475729,14.74186068,187.84,187.75,1.4882]
[1735573476638,14.74186068,187.84,187.76,2.6683]
[1735573476844,14.74186068,187.84,187.75,1.4882]
[1735573477335,14.74186068,187.84,187.74,2.6686]
[1735573477744,14.74186068,187.81,187.72,2.6688]
[1735573478039,14.74186068,187.81,187.71,3.94]
[1735573478040,14.74186068,187.81,187.7,1.5237]
[1735573478436,3.94,187.82,187.74,2.6686]
[1735573478633,18.68186068,187.82,187.74,2.6686]
[1735573479430,18.68186068,187.82,187.7,1.5237]
[1735573479635,18.68186068,187.82,187.73,2.6688]
[1735573479841,18.68186068,187.82,187.7,1.5237]
[1735573480234,18.68186068,187.82,187.72,2.6688]
[1735573480943,18.68186068,187.82,187.7,1.5237]
[1735573481143,18.68186068,187.82,187.71,4.11571204]
[1735573481442,18.68186068,187.82,187.7,1.5237]
[1735573481744,18.68186068,187.82,187.71,4.1196276]
[1735573481941,18.68186068,187.82,187.7,1.5237]
[1735573482244,3.94,187.82,187.71,4.11896219]
[1735573482442,18.68186068,187.82,187.75,2.6685]
[1735573482941,18.68186068,187.82,187.7,1.5237]
[1735573483241,18.68186068,187.82,187.71,4.1218642]
[1735573483444,18.68186068,187.82,187.72,4.1218642]
[1735573483645,18.68186068,187.82,187.72,2.6688]
[1735573484541,3.94,187.82,187.72,2.6688]
[1735573484745,14.74186068,187.8,187.72,2.6688]
[1735573486740,14.74186068,187.76,187.67,7.34514357]
[1735573487044,14.74186068,187.73,187.67,7.34514357]
[1735573487249,14.74186068,187.83,187.67,7.34514357]
[1735573487453,14.74186068,187.71,187.67,7.34514357]
[1735573487852,3.92,187.72,187.67,7.34514357]
[1735573488041,3.92,187.72,187.69,2.6693]
[1735573488350,3.92,187.72,187.63,10.47564357]
[1735573488551,3.92,187.72,187.64,4.13414475]
[1735573488753,3.92,187.72,187.65,4.13414475]
[1735573488948,1.06484932,187.82,187.68,2.6694]
[1735573489149,1.06484932,187.82,187.71,14.74186068]
[1735573489352,12.2812468,187.85,187.73,12.2812468]
[1735573489546,12.2812468,187.85,187.74,4.13276726]
[1735573489740,12.2812468,187.85,187.73,12.2812468]
[1735573489946,12.2812468,187.85,187.74,4.12948862]
[1735573490247,12.2812468,187.88,187.75,4.12948862]
[1735573490450,16.2012468,187.88,187.76,16.41073542]
[1735573490747,59.16498207,187.99,187.79,12.2812468]
[1735573490954,12.2812468,187.93,187.8,5.61812084]
[1735573491250,12.2812468,187.93,187.81,7.35492084]
[1735573491456,12.2812468,187.93,187.85,2.667]
[1735573491751,12.2812468,187.93,187.81,3.2283]
[1735573491952,12.2812468,187.93,187.87,2.6668]
[1735573492144,3.9,187.94,187.82,12.2812468]
[1735573492348,3.9,187.94,187.83,4.12385578]
[1735573492548,10.71387,187.96,187.87,2.6668]
[1735573492745,14.61387,187.96,187.87,2.6668]
[1735573492950,14.61387,187.96,187.81,22.85652523]
[1735573493152,14.61387,187.96,187.82,4.12086736]
[1735573493345,14.61387,187.96,187.81,22.85652523]
[1735573493346,14.61387,187.96,187.83,4.12086736]
[1735573493549,19.62822523,187.95,187.84,4.12086736]
[1735573493755,19.62822523,187.95,187.81,32.79168309]
[1735573493953,19.62822523,187.95,187.84,2.6672]
[1735573494149,19.62822523,187.95,187.81,32.79168309]
[1735573494355,19.62822523,187.92,187.82,4.12166135]
[1735573494652,19.62822523,187.92,187.83,2.6674]
[1735573495749,19.62822523,187.92,187.81,5.8958]
[1735573495955,19.62822523,187.92,187.81,3.2283]
[1735573496850,19.62822523,187.92,187.83,2.6673]
[1735573497247,3.9,187.91,187.81,3.2283]
[1735573497452,3.9,187.91,187.82,4.1242305]
[1735573497756,23.52822523,187.92,187.81,3.2283]
[1735573497944,23.52822523,187.92,187.82,4.12405144]
[1735573498144,23.52822523,187.92,187.81,3.2283]
[1735573498347,23.52822523,187.92,187.85,2.6671]
[1735573498759,23.52822523,187.92,187.81,3.2283]
[1735573499654,23.52822523,187.92,187.84,2.6672]
[1735573500658,3.9,187.92,187.86,2.6669]
[1735573500852,3.9,187.92,187.81,3.2283]
[1735573501062,3.9,187.93,187.81,3.2283]
[1735573501256,3.9,187.93,187.82,4.12389994]
[1735573501452,3.9,187.93,187.81,3.2283]
[1735573501653,3.9,187.93,187.82,4.12200872]
[1735573501852,3.9,187.93,187.81,3.2283]
[1735573501853,3.9,187.93,187.83,4.1210819]
[1735573502155,3.9,187.93,187.85,2.6671]
[1735573502354,3.9,187.93,187.81,1.6358]
[1735573502559,19.62822523,187.89,187.8,1.4915]
[1735573503347,19.62822523,187.92,187.8,1.4915]
[1735573503559,23.52822523,187.92,187.81,4.11951853]
[1735573503857,19.62822523,187.95,187.81,19.62822523]
[1735573504052,23.52822523,187.95,187.82,4.1187873]
[1735573504258,3.9,187.95,187.89,2.6665]
[1735573505061,10.71387,187.96,187.89,2.6665]
[1735573505962,10.71387,187.96,187.88,2.6667]
[1735573506257,19.62822523,187.95,187.83,1.6136]
[1735573506460,19.62822523,187.92,187.81,2.6675]
[1735573506665,3.9,187.91,187.79,3.9]
[1735573507058,3.9,187.91,187.81,2.6676]
[1735573507453,3.9,187.91,187.77,3.0745]
[1735573507660,19.62822523,187.89,187.77,3.0745]
[1735573508057,19.62822523,187.89,187.78,2.6681]
[1735573508258,3.9,187.91,187.78,2.6681]
[1735573508259,19.62822523,187.86,187.78,2.6681]
[1735573508757,19.62822523,187.86,187.77,4.1729]
[1735573510266,19.62822523,187.83,187.74,3.06501655]
[1735573510463,3.9,187.82,187.74,3.06501655]
[1735573510770,3.9,187.82,187.76,2.6684]
[1735573511565,3.9,187.82,187.74,3.06501655]
[1735573511868,3.9,187.82,187.73,1.6242]
[1735573512861,3.9,187.82,187.75,2.6685]
[1735573513159,3.9,187.82,187.73,1.6242]
[1735573513867,19.62822523,187.8,187.66,54.16491635]
[1735573514070,19.62822523,187.8,187.69,4.11899123]
[1735573514366,3.9,187.82,187.67,3.1173]
[1735573514367,3.9,187.82,187.7,4.11899123]
[1735573514568,3.9,187.82,187.71,4.11899123]
[1735573514767,3.9,187.82,187.72,6.78789123]
[1735573514973,3.9,187.82,187.72,2.6689]
[1735573515266,3.9,187.82,187.67,3.1173]
[1735573515471,3.9,187.82,187.73,2.6688]
[1735573515671,3.9,187.82,187.69,4.12180021]
[1735573515672,19.62822523,187.8,187.67,3.1173]
[1735573515871,19.62822523,187.77,187.67,4.1784]
[1735573516080,3.9,187.76,187.67,4.1784]
[1735573516472,3.9,187.76,187.68,2.6695]
[1735573516870,3.9,187.76,187.63,1.5079]
[1735573517074,3.9,187.76,187.66,2.6698]
[1735573517469,3.9,187.76,187.63,1.5079]
[1735573517672,3.9,187.76,187.68,2.6695]
[1735573518078,3.9,187.76,187.63,1.5079]
[1735573518378,3.9,187.76,187.67,2.6696]
[1735573519077,3.9,187.76,187.68,2.6694]
[1735573519277,3.9,187.76,187.63,1.5079]
[1735573519480,19.62822523,187.75,187.63,1.5079]
[1735573519778,19.62822523,187.75,187.65,2.6699]
[1735573522076,55.46,187.85,187.63,1.5079]
[1735573522283,12.29011287,187.78,187.66,12.29011287]
[1735573522475,3.9,187.77,187.66,12.29011287]
[1735573522675,3.9,187.77,187.7,2.6691]
[1735573523072,3.9,187.76,187.7,2.6691]
[1735573523277,12.29011287,187.75,187.63,1.5079]
[1735573523777,12.29011287,187.75,187.66,2.6698]
[1735573524279,12.29011287,187.83,187.66,2.6698]
[1735573524280,16.19011287,187.74,187.66,2.6698]
[1735573524479,16.19011287,187.74,187.63,13.79801287]
[1735573524881,16.19011287,187.74,187.68,2.6694]
[1735573525177,16.19011287,187.74,187.63,13.79801287]
[1735573525392,16.19011287,187.74,187.66,2.6698]
[1735573525790,16.19011287,187.74,187.63,13.79801287]
[1735573526095,16.19011287,187.74,187.67,2.6696]
[1735573528188,16.19011287,187.74,187.64,4.11844607]
[1735573528385,16.19011287,187.74,187.63,13.79801287]
[1735573528589,16.19011287,187.74,187.69,2.6693]
[1735573529094,12.29011287,187.74,187.69,2.6693]
[1735573529492,12.29011287,187.74,187.67,2.6697]
[1735573529890,12.29011287,187.74,187.63,1.5079]
[1735573530095,12.29011287,187.74,187.65,2.6699]
[1735573531290,12.29011287,187.74,187.63,1.5079]
[1735573531490,12.29011287,187.74,187.66,2.6698]
[1735573532499,12.29011287,187.74,187.63,1.5079]
[1735573532690,12.29011287,187.74,187.63,13.79801287]
[1735573532992,3.9,187.75,187.66,14.95981287]
[1735573533196,3.9,187.81,187.69,12.29011287]
[1735573533398,3.9,187.81,187.72,12.29011287]
[1735573533598,101.03758598,187.92,187.7,1.5323]
[1735573533599,12.29011287,187.87,187.73,1.6295]
[1735573533796,3.9,187.86,187.74,1.4928]
[1735573533991,3.9,187.86,187.81,2.6676]
[1735573534189,16.19011287,187.87,187.75,12.29011287]
[1735573534391,14.27378717,187.9,187.78,12.29011287]
[1735573534593,16.19011287,187.9,187.84,2.6671]
[1735573534795,3.9,187.9,187.79,1.5401]
[1735573535187,3.9,187.9,187.86,2.6668]
[1735573535800,3.9,187.9,187.82,1.4801]
[1735573536101,3.9,187.93,187.87,2.6668]
[1735573536299,3.9,187.93,187.82,1.4801]
[1735573536501,3.9,187.97,187.84,12.29011287]
[1735573537095,67.79011287,187.98,187.87,2.6667]
[1735573537399,71.69011287,187.98,187.84,12.29011287]
[1735573537599,16.19011287,187.98,187.84,12.29011287]
[1735573537799,3.9,188.0,187.87,12.29011287]
[1735573537998,12.29011287,188.01,187.9,12.29011287]
[1735573538203,3.9,188.04,187.89,23.51165646]
[1735573538403,3.9,188.04,187.9,4.11048727]
[1735573538704,3.9,188.04,187.95,2.6657]
[1735573538893,4.75647,187.96,187.95,2.6657]
[1735573539099,3.9,188.05,187.99,2.6651]
[1735573539298,75.09165646,188.1,187.99,2.6651]
[1735573539498,3.9,188.09,187.99,2.6651]
[1735573540199,3.9,188.09,188.01,2.6648]
[1735573540399,3.9,188.09,187.95,3.9]
[1735573540602,3.9,188.09,187.96,1.574]
[1735573541802,3.9,188.09,187.99,2.6651]
[1735573542004,3.9,188.09,187.96,1.574]
[1735573542205,19.61165646,188.09,188.03,2.6645]
[1735573542705,19.61165646,188.09,188.04,2.6644]
[1735573542904,19.61165646,188.09,187.96,1.574]
[1735573542905,3.9,188.1,187.96,1.574]
[1735573543301,19.61165646,188.12,188.06,2.6641]
[1735573543501,19.61165646,188.12,187.96,1.574]
[1735573544004,19.61165646,188.09,187.96,1.574]
[1735573544509,19.61165646,188.09,187.96,3.1896]
[1735573545308,19.61165646,188.09,188.0,2.6649]
[1735573545811,19.61165646,188.02,187.9,3.9]
[1735573546203,19.61165646,188.02,187.98,2.6653]
[1735573546408,19.61165646,188.02,187.9,3.9]
[1735573547109,3.9,188.04,187.9,3.9]
[1735573547309,19.61165646,188.05,187.9,3.9]
[1735573547511,1.5009,188.07,188.01,2.6647]
[1735573547810,1.5009,188.07,187.89,3.0535]
[1735573547811,1.5178,188.08,187.96,3.9]
[1735573548010,23.51165646,188.1,187.97,5.5156]
[1735573548208,23.51165646,188.1,188.06,2.6641]
[1735573548209,19.61165646,188.1,188.06,2.6641]
[1735573549313,19.61165646,188.1,187.99,1.5825]
[1735573549314,3.9,188.12,188.08,2.6638]
[1735573549510,19.61165646,188.13,187.99,1.5825]
[1735573549907,3.9,188.19,187.99,21.19415646]
[1735573550111,19.61165646,188.18,187.99,21.19415646]
[1735573550314,19.61165646,188.2,188.02,19.61165646]
[1735573550604,19.61165646,188.2,188.03,3.9]
[1735573551015,19.61165646,188.2,188.16,2.6627]
[1735573551206,19.61165646,188.2,188.03,3.9]
[1735573551207,19.61165646,188.23,188.09,3.9]
[1735573551415,19.61165646,188.29,188.24,2.6616]
[1735573551811,19.61165646,188.29,188.16,3.9]
[1735573552620,23.51165646,188.29,188.15,3.9]
[1735573552914,23.51165646,188.29,188.2,2.662]
[1735573553114,23.51165646,188.29,188.15,3.9]
[1735573554518,3.139,188.36,188.15,3.9]
[1735573554812,19.61165646,188.32,188.24,2.6614]
[1735573555018,19.61165646,188.32,188.15,3.9]
[1735573555911,19.61165646,188.29,188.14,19.61165646]
[1735573556107,19.61165646,188.29,188.15,3.9]
[1735573556308,19.61165646,188.32,188.15,3.9]
[1735573556913,19.61165646,188.29,188.14,19.61165646]
[1735573557121,19.61165646,188.29,188.16,3.9]
[1735573557411,19.61165646,188.23,188.1,4.7073]
[1735573557608,3.9,188.29,188.12,19.61165646]
[1735573557806,19.61165646,188.31,188.15,19.61165646]
[1735573558119,3.9,188.3,188.13,3.9]
[1735573558311,19.61165646,188.31,188.13,3.9]
[1735573558513,3.9,188.3,188.13,3.9]
[1735573558816,3.9,188.3,188.2,2.662]
[1735573559016,3.9,188.3,188.13,3.9]
[1735573559814,23.51165646,188.31,188.13,3.9]
[1735573560217,23.51165646,188.31,188.24,2.6615]
[1735573560518,3.9,188.31,188.24,2.6615]
[1735573561112,3.9,188.31,188.22,2.6617]
[1735573561517,3.9,188.31,188.13,3.9]
[1735573561718,3.9,188.31,188.28,2.661]
[1735573561924,3.139,188.36,188.28,2.661]
[1735573562213,3.139,188.36,188.21,19.61165646]
[1735573562911,3.139,188.36,188.25,2.6614]
[1735573563109,19.61165646,188.38,188.25,3.9]
[1735573564212,19.61165646,188.38,188.21,3.9]
[1735573564623,19.61165646,188.38,188.29,2.6608]
[1735573566223,19.61165646,188.38,188.31,2.6606]
[1735573566526,19.61165646,188.38,188.21,23.51165646]
[1735573566916,19.61165646,188.38,188.22,0.97835881]
[1735573567116,19.61165646,188.38,188.21,23.51165646]
[1735573567520,19.61165646,188.38,188.22,0.97829214]
[1735573567717,19.61165646,188.38,188.21,23.51165646]
[1735573568018,19.61165646,188.38,188.29,2.6608]
[1735573568214,19.61165646,188.38,188.21,23.51165646]
[1735573568419,19.61165646,188.38,188.22,0.97829515]
[1735573568717,19.61165646,188.38,188.31,2.6605]
[1735573569320,21.09825646,188.41,188.33,2.6602]
[1735573569521,3.9,188.4,188.33,2.6602]
[1735573569921,3.9,188.4,188.26,3.9]
[1735573570118,21.09825646,188.41,188.26,3.9]
[1735573570312,19.61165646,188.43,188.27,19.61165646]
[1735573570512,19.61165646,188.43,188.34,2.6601]
[1735573571115,19.61165646,188.43,188.27,19.61165646]
[1735573571523,25.03042453,188.44,188.27,19.53302453]
[1735573571722,25.03042453,188.44,188.37,2.6597]
[1735573571919,3.9,188.54,188.36,19.53302453]
[1735573572127,3.9,188.53,188.37,8.3638]
[1735573572619,3.1393,188.55,188.39,19.53302453]
[1735573572824,1.6127,188.55,188.42,19.53302453]
[1735573573123,3.9,188.58,188.43,3.9]
[1735573573324,1.6127,188.61,188.45,19.53302453]
[1735573573523,1.6127,188.61,188.55,2.6572]
[1735573573821,1.6127,188.61,188.49,3.9]
[1735573574028,1.6127,188.61,188.52,2.6575]
[1735573574222,21.14572453,188.61,188.46,1.4747]
[1735573574421,19.53302453,188.58,188.46,1.4747]
[1735573574727,3.9,188.57,188.49,2.658]
[1735573575130,3.9,188.57,188.46,1.4747]
[1735573575322,3.9,188.57,188.47,2.6582]
[1735573575522,19.53302453,188.55,188.39,19.53302453]
[1735573575725,23.43302453,188.55,188.4,6.35143406]
[1735573575919,23.43302453,188.55,188.45,2.6585]
[1735573576225,23.43302453,188.55,188.4,5.3741]
[1735573576424,3.9,188.55,188.42,19.53302453]
[1735573576726,23.43302453,188.58,188.42,19.53302453]
[1735573576925,19.53302453,188.58,188.42,19.53302453]
[1735573577121,19.53302453,188.58,188.49,2.658]
[1735573577327,19.53302453,188.58,188.42,19.53302453]
[1735573577527,19.53302453,188.58,188.43,0.97722357]
[1735573577721,19.53302453,188.58,188.42,19.53302453]
[1735573578118,19.53302453,188.58,188.47,2.6582]
[1735573578524,19.53302453,188.58,188.4,5.3741]
[1735573578720,19.53302453,188.58,188.47,2.6583]
[1735573578926,19.53302453,188.58,188.4,5.3741]
[1735573579131,19.53302453,188.55,188.41,3.9]
[1735573579323,3.9,188.54,188.43,2.6588]
[1735573579525,19.53302453,188.52,188.37,2.9891]
[1735573579730,19.53302453,188.49,188.37,2.9891]
[1735573579929,19.53302453,188.49,188.36,3.9]
[1735573579930,3.9,188.48,188.34,1.5333]
[1735573580131,19.53302453,188.46,188.34,1.5333]
[1735573580835,19.53302453,188.46,188.36,2.6599]
[1735573581326,19.53302453,188.46,188.34,2.6601]
[1735573581526,19.53302453,188.46,188.3,26.52722453]
[1735573582122,3.2119,188.51,188.3,26.52722453]
[1735573582334,1.6194,188.51,188.36,19.53302453]
[1735573582628,19.53302453,188.57,188.39,19.53302453]
[1735573582830,21.10862453,188.57,188.4,1.5082]
[1735573583033,21.10862453,188.57,188.47,2.6582]
[1735573583226,19.53302453,188.54,188.4,5.4082]
[1735573583534,19.53302453,188.54,188.44,2.6587]
[1735573583837,3.9,188.53,188.4,5.4082]
[1735573584030,3.9,188.53,188.37,1.5772]
[1735573584031,19.53302453,188.51,188.37,1.5772]
[1735573584228,19.52634895,188.47,188.34,29.56338309]
[1735573584429,7.0424,188.46,188.34,29.56338309]
[1735573584826,19.52634895,188.44,188.34,29.56338309]
[1735573585026,19.52634895,188.44,188.35,2.6599]
[1735573585228,19.52634895,188.44,188.34,29.56338309]
[1735573585534,19.52634895,188.41,188.31,2.6605]
[1735573585723,3.9,188.4,188.28,49.08973204]
[1735573586233,3.1424,188.46,188.28,49.08973204]
[1735573586427,3.1424,188.46,188.31,19.52634895]
[1735573586623,1.5956,188.46,188.34,19.52634895]
[1735573586830,3.9,188.5,188.35,1.5315]
[1735573587232,23.42634895,188.5,188.35,1.5315]
[1735573588636,23.42634895,188.5,188.41,2.659]
[1735573588839,23.42634895,188.5,188.35,1.5315]
[1735573589136,23.42634895,188.5,188.37,2.6596]
[1735573589337,19.52634895,188.47,188.37,2.6596]
[1735573589538,19.52634895,188.47,188.34,7.39084577]
[1735573589741,19.52634895,188.44,188.34,7.39084577]
[1735573589929,3.9,188.43,188.34,7.39084577]
[1735573590335,3.9,188.43,188.39,2.6594]
[1735573590736,3.9,188.43,188.32,3.0811]
[1735573590937,3.9,188.43,188.37,2.6596]
[1735573591131,3.9,188.43,188.32,3.0811]
[1735573591841,23.42634895,188.47,188.32,3.0811]
[1735573592040,23.42634895,188.47,188.4,2.6592]
[1735573592241,3.9,188.47,188.33,19.52634895]
[1735573592644,3.9,188.47,188.41,2.6591]
[1735573592944,3.9,188.47,188.33,19.52634895]
[1735573593246,3.9,188.47,188.38,2.6595]
[1735573593542,3.9,188.47,188.34,50.44834847]
[1735573594241,3.9,188.47,188.35,8.2523481]
[1735573594440,3.9,188.47,188.36,4.07535503]
[1735573594648,3.9,188.47,188.37,4.07535503]
[1735573594846,3.9,188.47,188.35,11.56783884]
[1735573595046,3.9,188.47,188.36,4.08205739]
[1735573595247,3.9,188.47,188.39,2.6594]
[1735573595447,19.52634895,188.47,188.35,29.56338309]
[1735573595653,19.52634895,188.47,188.36,4.09082661]
[1735573595847,3.9,188.46,188.36,2.6598]
[1735573596644,3.9,188.46,188.33,29.56338309]
[1735573596645,19.52634895,188.44,188.33,29.56338309]
[1735573596942,19.52634895,188.44,188.32,59.1267662]
[1735573596943,19.52634895,188.41,188.32,7.39084577]
[1735573597150,5.5161,188.4,188.32,7.39084577]
[1735573597341,5.5161,188.4,188.32,10.05124577]
[1735573597543,5.5161,188.4,188.32,7.39084577]
[1735573597939,5.5161,188.4,188.29,1.6224]
[1735573598141,1.6161,188.4,188.3,4.09682423]
[1735573598341,1.6161,188.4,188.33,2.6602]
[1735573598545,1.6161,188.4,188.29,1.6224]
[1735573598745,1.6161,188.4,188.31,2.6605]
[1735573599053,1.6161,188.4,188.29,1.6224]
[1735573599252,3.9,188.41,188.3,4.09838517]
[1735573599450,3.9,188.41,188.29,1.6224]
[1735573599650,3.9,188.41,188.3,4.09979075]
[1735573599847,3.9,188.41,188.29,1.6224]
[1735573600246,3.9,188.41,188.3,4.09974156]
[1735573600447,19.52634895,188.39,188.28,2.661]
[1735573600749,19.52634895,188.39,188.27,29.56338309]
[1735573601253,19.52634895,188.33,188.27,29.56338309]
[1735573601454,3.9,188.32,188.27,29.56338309]
[1735573601655,5.5134,188.32,188.23,29.56338309]
[1735573602349,19.52634895,188.3,188.23,29.56338309]
[1735573602544,5.5134,188.32,188.23,29.56338309]
[1735573602750,5.5134,188.32,188.24,2.6615]
[1735573602953,5.5134,188.32,188.23,29.56338309]
[1735573603154,5.5134,188.32,188.17,32.73798309]
[1735573603357,5.5134,188.32,188.18,4.10337528]
[1735573603554,5.5134,188.32,188.22,2.6618]
[1735573603947,5.5134,188.32,188.17,3.1746]
[1735573604145,5.5134,188.32,188.18,4.10380427]
[1735573604346,5.5134,188.32,188.19,4.10380427]